[Event "Titled Tuesday Blitz May 30 Late 2023"]
[White "Pranav, V"]
[Black "Haydon, David L"]
[WhiteFideId "25060783"]
[BlackFideId "415405"]
[WhiteElo "2515"]
[BlackElo "2326"]
[Result "1-0"]
[Round "03"]
[TimeControl "180+2"]
[Date "2023.05.31"]
[WhiteClock "0:00:17"]
[BlackClock "0:01:23"]

1. e4 {[%clk 0:03:00]}  c6 {[%clk 0:02:58]} 2. Nf3 {[%clk 0:03:00]}  d5 {[%clk 0:02:58]} 3. Nc3 {[%clk 0:03:01]}  Bg4 {[%clk 0:02:58]} 4. h3 {[%clk 0:02:59]}  Bxf3 {[%clk 0:02:58]} 5. Qxf3 {[%clk 0:03:00]}  e6 {[%clk 0:02:58]} 6. d3 {[%clk 0:03:00]}  Nf6 {[%clk 0:02:58]} 7. Bd2 {[%clk 0:03:00]}  Bd6 {[%clk 0:02:58]} 8. g4 {[%clk 0:03:00]}  h6 {[%clk 0:02:57]} 9. O-O-O {[%clk 0:02:59]}  Nbd7 {[%clk 0:02:57]} 10. Qg2 {[%clk 0:02:58]}  Qc7 {[%clk 0:02:56]} 11. Kb1 {[%clk 0:02:49]}  a6 {[%clk 0:02:52]} 12. h4 {[%clk 0:02:48]}  O-O-O {[%clk 0:02:49]} 13. Be2 {[%clk 0:02:46]}  g6 {[%clk 0:02:40]} 14. g5 {[%clk 0:02:41]}  Nh5 {[%clk 0:02:35]} 15. Bxh5 {[%clk 0:02:35]}  gxh5 {[%clk 0:02:35]} 16. Qf3 {[%clk 0:02:35]}  Ne5 {[%clk 0:02:32]} 17. Qh3 {[%clk 0:02:25]}  Ng4 {[%clk 0:02:25]} 18. Rhf1 {[%clk 0:02:19]}  Bf4 {[%clk 0:02:24]} 19. f3 {[%clk 0:02:13]}  Bxd2 {[%clk 0:02:15]} 20. Rxd2 {[%clk 0:02:12]}  Ne3 {[%clk 0:02:14]} 21. Rg1 {[%clk 0:02:11]}  Rdg8 {[%clk 0:02:07]} 22. Rf2 {[%clk 0:01:43]}  hxg5 {[%clk 0:01:59]} 23. hxg5 {[%clk 0:01:42]}  dxe4 {[%clk 0:01:58]} 24. fxe4 {[%clk 0:01:29]}  Ng4 {[%clk 0:01:57]} 25. Rfg2 {[%clk 0:01:29]}  Rxg5 {[%clk 0:01:55]} 26. Rxg4 {[%clk 0:01:30]}  Rxg4 {[%clk 0:01:39]} 27. Rxg4 {[%clk 0:01:29]}  hxg4 {[%clk 0:01:40]} 28. Qxh8+ {[%clk 0:01:29]}  Kd7 {[%clk 0:01:40]} 29. Ne2 {[%clk 0:01:19]}  Qb6 {[%clk 0:01:37]} 30. Qf6 {[%clk 0:01:02]}  Ke8 {[%clk 0:01:33]} 31. Qh8+ {[%clk 0:01:01]}  Kd7 {[%clk 0:01:32]} 32. Qd4+ {[%clk 0:01:01]}  Qxd4 {[%clk 0:01:31]} 33. Nxd4 {[%clk 0:01:02]}  Kd6 {[%clk 0:01:31]} 34. Kc1 {[%clk 0:00:51]}  Ke5 {[%clk 0:01:31]} 35. Ne2 {[%clk 0:00:48]}  f5 {[%clk 0:01:31]} 36. Kd2 {[%clk 0:00:47]}  f4 {[%clk 0:01:28]} 37. Ke1 {[%clk 0:00:45]}  c5 {[%clk 0:01:22]} 38. b3 {[%clk 0:00:37]}  b5 {[%clk 0:01:21]} 39. Kf2 {[%clk 0:00:34]}  c4 {[%clk 0:01:19]} 40. bxc4 {[%clk 0:00:16]}  bxc4 {[%clk 0:01:19]} 41. dxc4 {[%clk 0:00:17]}  Kxe4 {[%clk 0:01:19]} 42. c5 {[%clk 0:00:17]}  Kd5 {[%clk 0:01:19]} 43. Nxf4+ {[%clk 0:00:15]}  Kxc5 {[%clk 0:01:19]} 44. Nxe6+ {[%clk 0:00:15]}  Kc4 {[%clk 0:01:20]} 45. Ke2 {[%clk 0:00:15]}  Kc3 {[%clk 0:01:20]} 46. Kd1 {[%clk 0:00:15]}  g3 {[%clk 0:01:21]} 47. Nf4 {[%clk 0:00:16]}  a5 {[%clk 0:01:22]} 48. Ne2+ {[%clk 0:00:16]}  Kb2 {[%clk 0:01:21]} 49. c4 {[%clk 0:00:16]}  g2 {[%clk 0:01:21]} 50. c5 {[%clk 0:00:16]}  Kxa2 {[%clk 0:01:21]} 51. c6 {[%clk 0:00:16]}  a4 {[%clk 0:01:21]} 52. c7 {[%clk 0:00:17]}  a3 {[%clk 0:01:22]} 53. c8=Q {[%clk 0:00:18]}  g1=Q+ {[%clk 0:01:21]} 54. Nxg1 {[%clk 0:00:17]}  Ka1 {[%clk 0:01:21]} 55. Qc1+ {[%clk 0:00:17]}  Ka2 {[%clk 0:01:21]} 56. Qc2+ {[%clk 0:00:16]}  Ka1 {[%clk 0:01:22]} 57. Kc1 {[%clk 0:00:16]}  a2 {[%clk 0:01:23]} 58. Qb2# {[%clk 0:00:17]} 1-0


[Site "https://www.chess.com"]

[Event "Titled Tuesday Blitz May 30 Late 2023"]
[White "Ezat, Mohamed"]
[Black "Meshkovs, Nikita"]
[WhiteFideId "10600906"]
[BlackFideId "11602740"]
[WhiteElo "2386"]
[BlackElo "2537"]
[Result "1-0"]
[Round "03"]
[TimeControl "180+2"]
[Date "2023.05.31"]
[WhiteClock "0:00:28"]
[BlackClock "0:00:02"]

1. d4 {[%clk 0:03:00]}  Nf6 {[%clk 0:02:58]} 2. c4 {[%clk 0:02:52]}  g6 {[%clk 0:02:58]} 3. Nc3 {[%clk 0:02:52]}  Bg7 {[%clk 0:02:58]} 4. e4 {[%clk 0:02:51]}  O-O {[%clk 0:02:58]} 5. Be2 {[%clk 0:02:52]}  d6 {[%clk 0:02:59]} 6. Bg5 {[%clk 0:02:51]}  Nbd7 {[%clk 0:02:52]} 7. Qd2 {[%clk 0:02:48]}  e5 {[%clk 0:02:51]} 8. d5 {[%clk 0:02:48]}  a5 {[%clk 0:02:51]} 9. g4 {[%clk 0:02:46]}  Nc5 {[%clk 0:02:51]} 10. f3 {[%clk 0:02:46]}  c6 {[%clk 0:02:49]} 11. h4 {[%clk 0:02:45]}  a4 {[%clk 0:02:49]} 12. h5 {[%clk 0:02:45]}  cxd5 {[%clk 0:02:50]} 13. cxd5 {[%clk 0:02:44]}  Qa5 {[%clk 0:02:41]} 14. Nh3 {[%clk 0:02:44]}  a3 {[%clk 0:02:35]} 15. b3 {[%clk 0:02:44]}  Bd7 {[%clk 0:02:18]} 16. Nd1 {[%clk 0:02:40]}  Qxd2+ {[%clk 0:02:11]} 17. Bxd2 {[%clk 0:02:35]}  Rfc8 {[%clk 0:02:01]} 18. Nhf2 {[%clk 0:02:33]}  Ne8 {[%clk 0:01:57]} 19. Ne3 {[%clk 0:02:29]}  Nc7 {[%clk 0:01:52]} 20. Nc4 {[%clk 0:02:26]}  Ra6 {[%clk 0:01:52]} 21. Nd3 {[%clk 0:02:23]}  Nxd3+ {[%clk 0:01:39]} 22. Bxd3 {[%clk 0:02:22]}  Nb5 {[%clk 0:01:31]} 23. Ne3 {[%clk 0:02:20]}  Nd4 {[%clk 0:01:24]} 24. Kf2 {[%clk 0:01:59]}  Bb5 {[%clk 0:01:14]} 25. Bxb5 {[%clk 0:01:57]}  Nxb5 {[%clk 0:01:14]} 26. Rhc1 {[%clk 0:01:55]}  Rf8 {[%clk 0:01:14]} 27. Kg2 {[%clk 0:01:49]}  Bh6 {[%clk 0:01:14]} 28. Nc4 {[%clk 0:01:44]}  Bxd2 {[%clk 0:01:13]} 29. Nxd2 {[%clk 0:01:45]}  gxh5 {[%clk 0:01:09]} 30. gxh5 {[%clk 0:01:38]}  f5 {[%clk 0:01:10]} 31. Rc4 {[%clk 0:01:29]}  Nd4 {[%clk 0:00:54]} 32. Rc7 {[%clk 0:01:27]}  Rf7 {[%clk 0:00:48]} 33. Rac1 {[%clk 0:01:25]}  b5 {[%clk 0:00:30]} 34. Rxf7 {[%clk 0:01:20]}  Kxf7 {[%clk 0:00:31]} 35. Rc7+ {[%clk 0:01:20]}  Kf6 {[%clk 0:00:29]} 36. Rxh7 {[%clk 0:01:18]}  Kg5 {[%clk 0:00:30]} 37. exf5 {[%clk 0:01:13]}  Nxf5 {[%clk 0:00:26]} 38. Ne4+ {[%clk 0:01:13]}  Kh4 {[%clk 0:00:26]} 39. h6 {[%clk 0:01:04]}  Kh5 {[%clk 0:00:26]} 40. Rf7 {[%clk 0:00:56]}  Nxh6 {[%clk 0:00:18]} 41. Rg7 {[%clk 0:00:56]}  b4 {[%clk 0:00:13]} 42. Kh3 {[%clk 0:00:43]}  Nf5 {[%clk 0:00:04]} 43. Rg5+ {[%clk 0:00:42]}  Kh6 {[%clk 0:00:05]} 44. Rxf5 {[%clk 0:00:42]}  Kg7 {[%clk 0:00:06]} 45. Rf6 {[%clk 0:00:41]}  Ra8 {[%clk 0:00:02]} 46. Rxd6 {[%clk 0:00:39]}  Rh8+ {[%clk 0:00:03]} 47. Kg4 {[%clk 0:00:39]}  Rh2 {[%clk 0:00:03]} 48. Rd7+ {[%clk 0:00:34]}  Kg6 {[%clk 0:00:04]} 49. Rd6+ {[%clk 0:00:33]}  Kg7 {[%clk 0:00:03]} 50. Kf5 {[%clk 0:00:30]}  Rxa2 {[%clk 0:00:04]} 51. Rd7+ {[%clk 0:00:30]}  Kf8 {[%clk 0:00:04]} 52. Ke6 {[%clk 0:00:29]}  Rc2 {[%clk 0:00:01]} 53. Rf7+ {[%clk 0:00:28]}  Ke8 {[%clk 0:00:01]} 54. Nd6+ {[%clk 0:00:28]}  Kd8 {[%clk 0:00:02]} 55. Rd7# {[%clk 0:00:28]} 1-0


[Site "https://www.chess.com"]

[Event "Titled Tuesday Blitz May 30 Late 2023"]
[White "Suder, Jakub"]
[Black "Pakleza, Zbigniew"]
[WhiteFideId "1195310"]
[BlackFideId "1119290"]
[WhiteElo "2287"]
[BlackElo "2410"]
[Result "0-1"]
[Round "03"]
[TimeControl "180+2"]
[Date "2023.05.31"]
[WhiteClock "0:00:03"]
[BlackClock "0:00:01"]

1. d4 {[%clk 0:03:00]}  d6 {[%clk 0:02:50]} 2. Nf3 {[%clk 0:02:46]}  Bg4 {[%clk 0:02:50]} 3. Nbd2 {[%clk 0:02:42]}  Nf6 {[%clk 0:02:49]} 4. e4 {[%clk 0:02:41]}  e6 {[%clk 0:02:49]} 5. Bd3 {[%clk 0:02:39]}  Be7 {[%clk 0:02:50]} 6. c3 {[%clk 0:02:39]}  d5 {[%clk 0:02:50]} 7. e5 {[%clk 0:02:38]}  Nfd7 {[%clk 0:02:50]} 8. Qc2 {[%clk 0:02:37]}  Bh5 {[%clk 0:02:39]} 9. Nf1 {[%clk 0:02:30]}  Bg6 {[%clk 0:02:36]} 10. Ng3 {[%clk 0:02:24]}  c5 {[%clk 0:02:36]} 11. h4 {[%clk 0:02:19]}  Nc6 {[%clk 0:02:32]} 12. a3 {[%clk 0:02:09]}  Rc8 {[%clk 0:02:30]} 13. h5 {[%clk 0:02:05]}  Bxd3 {[%clk 0:02:29]} 14. Qxd3 {[%clk 0:02:06]}  h6 {[%clk 0:02:30]} 15. Ne2 {[%clk 0:02:04]}  cxd4 {[%clk 0:02:18]} 16. cxd4 {[%clk 0:02:03]}  Qb6 {[%clk 0:02:12]} 17. b4 {[%clk 0:01:57]}  a5 {[%clk 0:02:11]} 18. b5 {[%clk 0:01:53]}  Na7 {[%clk 0:02:11]} 19. a4 {[%clk 0:01:52]}  Qd8 {[%clk 0:02:11]} 20. Bd2 {[%clk 0:01:50]}  Rc4 {[%clk 0:02:01]} 21. O-O {[%clk 0:01:45]}  Bb4 {[%clk 0:01:55]} 22. Bxb4 {[%clk 0:01:39]}  Rxb4 {[%clk 0:01:55]} 23. Rfb1 {[%clk 0:01:36]}  Rxb1+ {[%clk 0:01:44]} 24. Rxb1 {[%clk 0:01:36]}  Nb6 {[%clk 0:01:43]} 25. Qc3 {[%clk 0:01:10]}  Nxa4 {[%clk 0:01:11]} 26. Qa3 {[%clk 0:01:09]}  Nb6 {[%clk 0:01:11]} 27. Qxa5 {[%clk 0:01:09]}  Nac8 {[%clk 0:01:09]} 28. Rc1 {[%clk 0:00:50]}  Nc4 {[%clk 0:01:04]} 29. Qa8 {[%clk 0:00:46]}  Qd7 {[%clk 0:00:41]} 30. Nd2 {[%clk 0:00:42]}  O-O {[%clk 0:00:41]} 31. Nxc4 {[%clk 0:00:41]}  dxc4 {[%clk 0:00:42]} 32. Qa3 {[%clk 0:00:36]}  Qxb5 {[%clk 0:00:31]} 33. Nc3 {[%clk 0:00:36]}  Qc6 {[%clk 0:00:24]} 34. Qa5 {[%clk 0:00:23]}  Nb6 {[%clk 0:00:20]} 35. Nb5 {[%clk 0:00:19]}  Ra8 {[%clk 0:00:17]} 36. Qb4 {[%clk 0:00:16]}  Ra4 {[%clk 0:00:15]} 37. Qb1 {[%clk 0:00:16]}  Nd5 {[%clk 0:00:13]} 38. Nd6 {[%clk 0:00:14]}  b6 {[%clk 0:00:09]} 39. Qe4 {[%clk 0:00:12]}  c3 {[%clk 0:00:09]} 40. Qf3 {[%clk 0:00:12]}  Ra7 {[%clk 0:00:06]} 41. Qe4 {[%clk 0:00:10]}  b5 {[%clk 0:00:05]} 42. f4 {[%clk 0:00:06]}  b4 {[%clk 0:00:06]} 43. f5 {[%clk 0:00:06]}  Ne7 {[%clk 0:00:06]} 44. Qe3 {[%clk 0:00:03]}  Nxf5 {[%clk 0:00:05]} 45. Nxf5 {[%clk 0:00:04]}  exf5 {[%clk 0:00:06]} 46. d5 {[%clk 0:00:05]}  Qa6 {[%clk 0:00:03]} 47. e6 {[%clk 0:00:05]}  Re7 {[%clk 0:00:01]} 48. Qc5 {[%clk 0:00:03]}  Qa7 {[%clk 0:00:01]} 0-1


[Site "https://www.chess.com"]

[Event "Titled Tuesday Blitz May 30 Late 2023"]
[White "Devagharan, Devina"]
[Black "Makridis, Dimitrios"]
[WhiteFideId "2061600"]
[BlackFideId "25864475"]
[WhiteElo "2429"]
[BlackElo "2277"]
[Result "0-1"]
[Round "03"]
[TimeControl "180+2"]
[Date "2023.05.31"]
[WhiteClock "0:00:36"]
[BlackClock "0:01:06"]

1. d4 {[%clk 0:03:00]}  g6 {[%clk 0:03:00]} 2. c4 {[%clk 0:03:00]}  Nf6 {[%clk 0:02:54]} 3. Nc3 {[%clk 0:03:00]}  d5 {[%clk 0:02:55]} 4. cxd5 {[%clk 0:02:59]}  Nxd5 {[%clk 0:02:55]} 5. e4 {[%clk 0:03:00]}  Nxc3 {[%clk 0:02:43]} 6. bxc3 {[%clk 0:03:01]}  Bg7 {[%clk 0:02:44]} 7. Nf3 {[%clk 0:03:01]}  c5 {[%clk 0:02:44]} 8. Be2 {[%clk 0:03:01]}  O-O {[%clk 0:02:45]} 9. O-O {[%clk 0:03:01]}  Nc6 {[%clk 0:02:45]} 10. Be3 {[%clk 0:02:58]}  b6 {[%clk 0:02:46]} 11. d5 {[%clk 0:02:49]}  Ne5 {[%clk 0:02:45]} 12. Nxe5 {[%clk 0:02:50]}  Bxe5 {[%clk 0:02:46]} 13. Qc2 {[%clk 0:02:49]}  e6 {[%clk 0:02:46]} 14. Rad1 {[%clk 0:02:42]}  exd5 {[%clk 0:02:43]} 15. exd5 {[%clk 0:02:19]}  Re8 {[%clk 0:02:38]} 16. Bf3 {[%clk 0:01:59]}  Qd6 {[%clk 0:02:34]} 17. g3 {[%clk 0:01:48]}  Bh3 {[%clk 0:02:32]} 18. Bg2 {[%clk 0:01:46]}  Bd7 {[%clk 0:02:30]} 19. c4 {[%clk 0:01:45]}  a6 {[%clk 0:02:28]} 20. Rb1 {[%clk 0:01:42]}  Rac8 {[%clk 0:02:28]} 21. Rfc1 {[%clk 0:01:34]}  Bf5 {[%clk 0:02:28]} 22. Qb3 {[%clk 0:01:24]}  Bxb1 {[%clk 0:02:27]} 23. Rxb1 {[%clk 0:01:25]}  b5 {[%clk 0:02:26]} 24. cxb5 {[%clk 0:01:20]}  c4 {[%clk 0:02:27]} 25. Qc2 {[%clk 0:01:16]}  axb5 {[%clk 0:02:27]} 26. Rxb5 {[%clk 0:01:15]}  c3 {[%clk 0:02:27]} 27. Rb6 {[%clk 0:01:11]}  Qd7 {[%clk 0:02:23]} 28. a4 {[%clk 0:01:04]}  Qf5 {[%clk 0:01:15]} 29. Be4 {[%clk 0:00:58]}  Qg4 {[%clk 0:01:09]} 30. Bg2 {[%clk 0:00:50]}  Bd4 {[%clk 0:01:07]} 31. Rb4 {[%clk 0:00:46]}  Rxe3 {[%clk 0:01:07]} 32. Rxd4 {[%clk 0:00:35]}  Re1+ {[%clk 0:01:05]} 33. Bf1 {[%clk 0:00:36]}  Qxd4 {[%clk 0:01:06]} 0-1


[Site "https://www.chess.com"]

[Event "Titled Tuesday Blitz May 30 Late 2023"]
[White "Saveliev, Alexei"]
[Black "Sailer, Mike"]
[WhiteFideId "24128546"]
[BlackFideId "2012901"]
[WhiteElo "2271"]
[BlackElo "2109"]
[Result "1-0"]
[Round "03"]
[TimeControl "180+2"]
[Date "2023.05.31"]
[WhiteClock "0:00:09"]
[BlackClock "0:00:13"]

1. c4 {[%clk 0:02:55]}  c6 {[%clk 0:02:59]} 2. Nc3 {[%clk 0:02:55]}  d5 {[%clk 0:02:57]} 3. cxd5 {[%clk 0:02:55]}  cxd5 {[%clk 0:02:57]} 4. d4 {[%clk 0:02:56]}  Nf6 {[%clk 0:02:57]} 5. Nf3 {[%clk 0:02:56]}  Nc6 {[%clk 0:02:57]} 6. Bg5 {[%clk 0:02:57]}  Ne4 {[%clk 0:02:53]} 7. Bh4 {[%clk 0:02:57]}  Nxc3 {[%clk 0:02:49]} 8. bxc3 {[%clk 0:02:58]}  Qa5 {[%clk 0:02:42]} 9. Qb3 {[%clk 0:02:49]}  e6 {[%clk 0:02:36]} 10. e3 {[%clk 0:02:48]}  Bd6 {[%clk 0:02:35]} 11. Bd3 {[%clk 0:02:45]}  O-O {[%clk 0:02:32]} 12. O-O {[%clk 0:02:45]}  h6 {[%clk 0:02:31]} 13. e4 {[%clk 0:02:30]}  dxe4 {[%clk 0:02:26]} 14. Bxe4 {[%clk 0:02:31]}  Ne7 {[%clk 0:02:06]} 15. c4 {[%clk 0:02:14]}  Qb4 {[%clk 0:01:56]} 16. Qxb4 {[%clk 0:01:56]}  Bxb4 {[%clk 0:01:55]} 17. Rab1 {[%clk 0:01:47]}  Ba3 {[%clk 0:01:49]} 18. Rb3 {[%clk 0:01:47]}  g5 {[%clk 0:01:48]} 19. Bg3 {[%clk 0:01:19]}  f5 {[%clk 0:01:47]} 20. Bb1 {[%clk 0:00:57]}  f4 {[%clk 0:01:29]} 21. Rxa3 {[%clk 0:00:58]}  fxg3 {[%clk 0:01:29]} 22. hxg3 {[%clk 0:00:58]}  Nc6 {[%clk 0:01:25]} 23. Be4 {[%clk 0:00:50]}  Bd7 {[%clk 0:01:18]} 24. Re1 {[%clk 0:00:39]}  g4 {[%clk 0:01:17]} 25. Bxc6 {[%clk 0:00:39]}  Bxc6 {[%clk 0:01:18]} 26. Ne5 {[%clk 0:00:39]}  Rfd8 {[%clk 0:01:09]} 27. Rd3 {[%clk 0:00:39]}  h5 {[%clk 0:00:59]} 28. Ng6 {[%clk 0:00:38]}  Kf7 {[%clk 0:00:53]} 29. Nf4 {[%clk 0:00:38]}  b5 {[%clk 0:00:38]} 30. cxb5 {[%clk 0:00:28]}  Bxb5 {[%clk 0:00:38]} 31. Rb3 {[%clk 0:00:29]}  Bc4 {[%clk 0:00:27]} 32. Rb7+ {[%clk 0:00:29]}  Kf6 {[%clk 0:00:26]} 33. Nxh5+ {[%clk 0:00:26]}  Kg6 {[%clk 0:00:25]} 34. Nf4+ {[%clk 0:00:22]}  Kf6 {[%clk 0:00:25]} 35. a3 {[%clk 0:00:06]}  Rxd4 {[%clk 0:00:23]} 36. Nh5+ {[%clk 0:00:06]}  Kg6 {[%clk 0:00:13]} 37. Nf4+ {[%clk 0:00:07]}  Kf6 {[%clk 0:00:13]} 38. Rh7 {[%clk 0:00:05]}  e5 {[%clk 0:00:12]} 39. Ne2 {[%clk 0:00:02]}  Bxe2 {[%clk 0:00:12]} 40. Rxe2 {[%clk 0:00:03]}  Rd1+ {[%clk 0:00:12]} 41. Kh2 {[%clk 0:00:04]}  Kg6 {[%clk 0:00:13]} 42. Rh4 {[%clk 0:00:04]}  Kg5 {[%clk 0:00:13]} 43. Rxe5+ {[%clk 0:00:05]}  Kf6 {[%clk 0:00:13]} 44. Re4 {[%clk 0:00:06]}  Rd3 {[%clk 0:00:13]} 45. Rf4+ {[%clk 0:00:06]}  Kg6 {[%clk 0:00:13]} 46. a4 {[%clk 0:00:06]}  Rb8 {[%clk 0:00:12]} 47. Rhxg4+ {[%clk 0:00:07]}  Kh5 {[%clk 0:00:12]} 48. Rh4+ {[%clk 0:00:08]}  Kg5 {[%clk 0:00:12]} 49. Rhg4+ {[%clk 0:00:08]}  Kh5 {[%clk 0:00:13]} 50. Rg7 {[%clk 0:00:08]}  Kh6 {[%clk 0:00:13]} 51. Rfg4 {[%clk 0:00:09]}  Rb2 {[%clk 0:00:13]} 52. R7g6+ {[%clk 0:00:09]}  Kh5 {[%clk 0:00:13]} 53. R4g5# {[%clk 0:00:09]} 1-0


[Site "https://www.chess.com"]

[Event "Titled Tuesday Blitz May 30 Late 2023"]
[White "D`Arruda, Ricardo D."]
[Black "Sarana, Alexey"]
[WhiteFideId "100692"]
[BlackFideId "24133795"]
[WhiteElo "2512"]
[BlackElo "2714"]
[Result "0-1"]
[Round "03"]
[TimeControl "180+2"]
[Date "2023.05.31"]
[WhiteClock "0:00:01"]
[BlackClock "0:00:26"]

1. d4 {[%clk 0:02:37]}  Nf6 {[%clk 0:02:55]} 2. Nf3 {[%clk 0:02:36]}  d5 {[%clk 0:02:55]} 3. c4 {[%clk 0:02:36]}  e6 {[%clk 0:02:55]} 4. e3 {[%clk 0:02:36]}  b6 {[%clk 0:02:40]} 5. Nc3 {[%clk 0:02:36]}  Bb7 {[%clk 0:02:39]} 6. cxd5 {[%clk 0:02:36]}  exd5 {[%clk 0:02:40]} 7. Bd3 {[%clk 0:02:35]}  Bd6 {[%clk 0:02:40]} 8. O-O {[%clk 0:02:33]}  O-O {[%clk 0:02:40]} 9. b3 {[%clk 0:02:33]}  Nbd7 {[%clk 0:02:40]} 10. Bb2 {[%clk 0:02:27]}  a6 {[%clk 0:02:38]} 11. Qc2 {[%clk 0:02:27]}  Re8 {[%clk 0:02:38]} 12. Rfe1 {[%clk 0:02:25]}  Ne4 {[%clk 0:02:37]} 13. Rac1 {[%clk 0:02:20]}  Qf6 {[%clk 0:02:36]} 14. Ne2 {[%clk 0:02:18]}  Qh6 {[%clk 0:02:35]} 15. Ng3 {[%clk 0:02:17]}  g6 {[%clk 0:02:21]} 16. Ne5 {[%clk 0:01:53]}  Ndf6 {[%clk 0:02:08]} 17. f3 {[%clk 0:01:47]}  Nxg3 {[%clk 0:02:07]} 18. hxg3 {[%clk 0:01:48]}  Rad8 {[%clk 0:02:02]} 19. Rcd1 {[%clk 0:01:46]}  Nh5 {[%clk 0:02:00]} 20. g4 {[%clk 0:01:31]}  Ng7 {[%clk 0:01:59]} 21. f4 {[%clk 0:01:12]}  Qh4 {[%clk 0:01:50]} 22. g5 {[%clk 0:01:09]}  Nh5 {[%clk 0:01:34]} 23. Qe2 {[%clk 0:00:53]}  Bxe5 {[%clk 0:01:22]} 24. fxe5 {[%clk 0:00:53]}  Qxg5 {[%clk 0:01:19]} 25. Qf3 {[%clk 0:00:50]}  f5 {[%clk 0:01:19]} 26. Rf1 {[%clk 0:00:36]}  Rd7 {[%clk 0:01:17]} 27. Bc1 {[%clk 0:00:27]}  Qh4 {[%clk 0:01:15]} 28. Qh3 {[%clk 0:00:24]}  Qxh3 {[%clk 0:01:12]} 29. gxh3 {[%clk 0:00:25]}  Ng7 {[%clk 0:01:10]} 30. Kg2 {[%clk 0:00:25]}  Ne6 {[%clk 0:01:11]} 31. Bd2 {[%clk 0:00:24]}  c5 {[%clk 0:01:11]} 32. Bc3 {[%clk 0:00:24]}  b5 {[%clk 0:01:08]} 33. b4 {[%clk 0:00:23]}  c4 {[%clk 0:01:04]} 34. Be2 {[%clk 0:00:22]}  Ng5 {[%clk 0:01:05]} 35. Bf3 {[%clk 0:00:21]}  Rf7 {[%clk 0:01:03]} 36. h4 {[%clk 0:00:21]}  Ne6 {[%clk 0:01:03]} 37. Kg3 {[%clk 0:00:20]}  Ref8 {[%clk 0:01:01]} 38. Rh1 {[%clk 0:00:20]}  Kg7 {[%clk 0:00:56]} 39. Rdf1 {[%clk 0:00:19]}  h6 {[%clk 0:00:55]} 40. Bd2 {[%clk 0:00:18]}  f4+ {[%clk 0:00:50]} 41. exf4 {[%clk 0:00:17]}  Nxd4 {[%clk 0:00:51]} 42. Bd1 {[%clk 0:00:15]}  Nf5+ {[%clk 0:00:49]} 43. Kh2 {[%clk 0:00:14]}  d4 {[%clk 0:00:50]} 44. Bf3 {[%clk 0:00:13]}  Bxf3 {[%clk 0:00:50]} 45. Rxf3 {[%clk 0:00:14]}  c3 {[%clk 0:00:48]} 46. Bc1 {[%clk 0:00:13]}  Rd7 {[%clk 0:00:47]} 47. Rd3 {[%clk 0:00:13]}  Kf7 {[%clk 0:00:47]} 48. Rhd1 {[%clk 0:00:13]}  Rc8 {[%clk 0:00:48]} 49. Kh3 {[%clk 0:00:13]}  Ke6 {[%clk 0:00:46]} 50. Kg4 {[%clk 0:00:11]}  Kd5 {[%clk 0:00:46]} 51. h5 {[%clk 0:00:11]}  Ke4 {[%clk 0:00:31]} 52. hxg6 {[%clk 0:00:10]}  Rg7 {[%clk 0:00:30]} 53. Re1+ {[%clk 0:00:08]}  Kxd3 {[%clk 0:00:29]} 54. Kxf5 {[%clk 0:00:09]}  Rf8+ {[%clk 0:00:30]} 55. Ke6 {[%clk 0:00:08]}  Rxg6+ {[%clk 0:00:29]} 56. Kd5 {[%clk 0:00:09]}  Rd8+ {[%clk 0:00:25]} 57. Kc5 {[%clk 0:00:09]}  Kc2 {[%clk 0:00:25]} 58. e6 {[%clk 0:00:09]}  d3 {[%clk 0:00:25]} 59. e7 {[%clk 0:00:07]}  Re8 {[%clk 0:00:26]} 60. f5 {[%clk 0:00:07]}  Rf6 {[%clk 0:00:26]} 61. Be3 {[%clk 0:00:05]}  d2 {[%clk 0:00:26]} 62. Rf1 {[%clk 0:00:01]}  Rxe7 {[%clk 0:00:26]} 0-1


[Site "https://www.chess.com"]

[Event "Titled Tuesday Blitz May 30 Late 2023"]
[White "Dragomirescu, Robin-Alexandru"]
[Black "Bortnyk, Olexandr"]
[WhiteFideId "1213849"]
[BlackFideId "14120828"]
[WhiteElo "2356"]
[BlackElo "2734"]
[Result "0-1"]
[Round "03"]
[TimeControl "180+2"]
[Date "2023.05.31"]
[WhiteClock "0:00:13"]
[BlackClock "0:01:03"]

1. b3 {[%clk 0:03:00]}  d5 {[%clk 0:02:59]} 2. Bb2 {[%clk 0:03:01]}  Bf5 {[%clk 0:02:58]} 3. e3 {[%clk 0:02:59]}  e6 {[%clk 0:02:58]} 4. c4 {[%clk 0:02:58]}  c6 {[%clk 0:02:56]} 5. Nf3 {[%clk 0:02:58]}  Nf6 {[%clk 0:02:56]} 6. Nc3 {[%clk 0:02:58]}  Bd6 {[%clk 0:02:51]} 7. d4 {[%clk 0:02:50]}  Nbd7 {[%clk 0:02:49]} 8. Bd3 {[%clk 0:02:50]}  Bxd3 {[%clk 0:02:48]} 9. Qxd3 {[%clk 0:02:49]}  O-O {[%clk 0:02:48]} 10. O-O {[%clk 0:02:48]}  Bb4 {[%clk 0:02:41]} 11. a3 {[%clk 0:02:18]}  Bxc3 {[%clk 0:02:40]} 12. Bxc3 {[%clk 0:02:19]}  Ne4 {[%clk 0:02:40]} 13. Bb4 {[%clk 0:02:14]}  Re8 {[%clk 0:02:40]} 14. a4 {[%clk 0:02:13]}  a5 {[%clk 0:02:39]} 15. Ba3 {[%clk 0:02:13]}  Qf6 {[%clk 0:02:32]} 16. Nd2 {[%clk 0:02:09]}  Qg6 {[%clk 0:02:22]} 17. Nxe4 {[%clk 0:02:06]}  dxe4 {[%clk 0:02:23]} 18. Qc2 {[%clk 0:02:01]}  e5 {[%clk 0:02:18]} 19. d5 {[%clk 0:01:52]}  f5 {[%clk 0:01:55]} 20. dxc6 {[%clk 0:01:41]}  bxc6 {[%clk 0:01:56]} 21. Rad1 {[%clk 0:01:41]}  Nf6 {[%clk 0:01:53]} 22. Rd6 {[%clk 0:01:27]}  f4 {[%clk 0:01:34]} 23. Kh1 {[%clk 0:00:37]}  Rad8 {[%clk 0:01:28]} 24. Rfd1 {[%clk 0:00:33]}  Rxd6 {[%clk 0:01:25]} 25. Rxd6 {[%clk 0:00:34]}  f3 {[%clk 0:01:26]} 26. gxf3 {[%clk 0:00:30]}  Qh5 {[%clk 0:01:21]} 27. Rxf6 {[%clk 0:00:22]}  gxf6 {[%clk 0:01:16]} 28. Qxe4 {[%clk 0:00:22]}  Rd8 {[%clk 0:01:10]} 29. Qxc6 {[%clk 0:00:13]}  Qh3 {[%clk 0:01:03]} 0-1


[Site "https://www.chess.com"]